bitfinex-derivatives/quotes_ETHF0:USTF0_20260315
["timestamp","ask_amount","ask_price","bid_price","bid_amount"]
[1773557011707,0.41374511,2104.8,2104.3,0.59871934]
[1773557029726,0.41374511,2104.8,2104.3,0.00601823]
[1773557030127,0.41374511,2104.8,2104.3,0.58344868]
[1773557036024,5.72161816,2105.0,2104.3,0.58344868]
[1773557036222,0.33221908,2104.9,2104.3,0.58344868]
[1773557037833,5.72355581,2105.0,2104.3,0.58344868]
[1773557038034,0.32745983,2105.0,2104.3,0.58344868]
[1773557040336,6.05593523,2105.0,2104.3,0.58344868]
[1773557040538,0.32745983,2105.0,2104.3,0.58344868]
[1773557040834,6.05593583,2105.0,2104.3,0.58344868]
[1773557042033,0.32745983,2105.0,2104.3,0.58344868]
[1773557042337,0.32238061,2105.1,2104.5,0.56878409]
[1773557074068,0.32238061,2105.1,2104.4,0.51944551]
[1773557074267,0.3980336,2105.0,2104.4,0.51944551]
[1773557074468,0.3980336,2104.9,2104.4,0.51944551]
[1773557081581,0.3980336,2104.9,2104.3,0.52546374]
[1773557094992,0.40561242,2104.8,2104.0,7.44595244]
[1773557095188,0.54014482,2104.7,2104.0,0.56189857]
[1773557095388,5.73132531,2104.8,2104.0,0.56189857]
[1773557095693,0.54014482,2104.9,2104.0,0.56189857]
[1773557096090,0.54014482,2104.9,2104.0,0.56559368]
[1773557098093,0.54014482,2104.8,2104.0,0.56559368]
[1773557109701,0.00487573,2105.1,2104.2,0.56189857]
[1773557109702,6.26528667,2104.9,2104.2,0.56189857]
[1773557109903,0.54014482,2104.9,2104.2,0.56189857]
[1773557112806,5.7253179,2105.0,2104.2,0.56189857]
[1773557113208,6.26546272,2105.0,2104.2,0.56189857]
[1773557114208,0.54014482,2104.9,2104.2,0.56189857]
[1773557118509,6.26546272,2105.0,2104.2,0.56189857]
[1773557121814,0.59854685,2104.9,2104.2,0.56189857]
[1773557128529,0.59854685,2105.0,2104.2,0.56189857]
[1773557140545,0.59854685,2105.0,2104.4,0.59839896]
[1773557140740,0.59854685,2105.0,2104.3,1.80611475]
[1773557140741,0.59854685,2105.0,2104.6,0.59839896]
[1773557140948,0.60342258,2105.1,2104.6,0.59839896]
[1773557146853,0.60342258,2105.1,2104.4,0.59839896]
[1773557187467,0.56935926,2105.0,2104.4,0.59839896]
[1773557208277,0.00487573,2105.1,2104.4,0.59839896]
[1773557208475,0.57423499,2105.1,2104.5,0.59495078]
[1773557217780,0.57423499,2105.1,2104.4,0.55570679]
[1773557222484,0.57423499,2105.1,2104.5,0.55570679]
[1773557223079,5.73090357,2105.4,2104.6,0.55570679]
[1773557223280,0.5490529,2105.5,2104.6,0.55570679]
[1773557223281,0.5490529,2105.5,2104.7,0.55570679]
[1773557223581,0.5490529,2105.5,2104.9,0.55570679]
[1773557223975,0.55264953,2105.5,2104.9,0.55570679]
[1773557237408,0.55264953,2105.5,2104.8,41.35570679]
[1773557237706,0.5490529,2105.2,2104.5,0.55570679]
[1773557238103,0.5490529,2105.2,2104.5,41.35570679]
[1773557238609,0.5490529,2105.2,2104.6,0.55570679]
[1773557267526,0.55248022,2105.1,2104.6,0.55570679]
[1773557278240,2.35733793,2105.1,2104.6,0.55570679]
[1773557278439,0.57926668,2105.0,2104.5,0.53771661]
[1773557290560,6.29440462,2105.2,2104.5,0.53771661]
[1773557290961,0.57926668,2105.1,2104.5,0.53771661]
[1773557315881,0.57926668,2105.1,2104.4,69.449]
[1773557316182,0.57926668,2105.1,2104.4,69.98767736]
[1773557316377,0.57926668,2105.1,2104.5,0.53867736]
[1773557320087,0.57926668,2105.1,2104.3,0.53867736]
[1773557322089,6.29050265,2105.1,2104.3,0.53867736]
[1773557322290,0.57926668,2105.1,2104.3,0.53867736]
[1773557354013,0.59180737,2105.0,2104.3,0.53867736]
[1773557385435,0.5373882,2104.7,2104.2,0.00156182]
[1773557386032,0.5373882,2104.6,2104.2,0.00156182]
[1773557393641,0.56327213,2105.1,2104.6,0.5209403]
[1773557394330,5.72673647,2105.3,2104.6,0.5209403]
[1773557394533,0.56327213,2105.2,2104.6,0.5209403]
[1773557408152,0.56327213,2105.2,2104.4,0.5209403]
[1773557408153,0.56327213,2105.1,2104.4,0.5209403]
[1773557417562,0.56327213,2105.2,2104.4,0.5209403]
[1773557418666,0.56327213,2105.3,2104.4,0.5209403]
[1773557418868,0.56327213,2105.3,2104.5,0.5209403]
[1773557425773,0.56327213,2105.3,2104.6,0.56213219]
[1773557435676,0.00359663,2105.5,2104.6,0.56213219]
[1773557435874,0.54415324,2105.4,2104.7,0.57154767]
[1773557449591,0.54415324,2105.4,2104.8,0.57154767]
[1773557449791,0.54774987,2105.5,2104.8,0.57154767]
[1773557457796,0.57766874,2105.8,2105.2,8.01448237]
[1773557457994,0.57766874,2105.8,2105.3,0.54568401]
[1773557458296,0.57766874,2106.3,2105.5,0.54568401]
[1773557458696,0.58138107,2106.3,2105.5,0.5502398]
[1773557460896,0.57766874,2106.2,2105.5,0.5502398]
[1773557462500,0.00371233,2106.3,2105.5,0.5502398]
[1773557462794,0.57766874,2106.7,2105.9,0.54568401]
[1773557462999,0.57766874,2106.7,2106.0,0.54568401]
[1773557463706,0.58246881,2106.7,2106.0,0.54568401]
[1773557472610,0.58246881,2106.7,2105.8,0.78317093]
[1773557472810,0.58246881,2106.7,2105.6,0.54568401]
[1773557475610,0.57766874,2106.5,2105.6,0.54568401]
[1773557498229,0.57766874,2106.5,2105.7,0.5776091]
[1773557502231,0.57766874,2106.5,2105.8,0.5776091]
[1773557514246,0.55565484,2106.4,2105.8,0.5776091]
[1773557522450,5.61019501,2106.5,2105.8,0.5776091]
[1773557522651,0.56045491,2106.7,2106.0,0.53187612]
[1773557522850,0.00480007,2106.7,2106.2,0.53187612]
[1773557523049,0.00480007,2106.7,2106.1,1.80334398]
[1773557523050,0.55565484,2106.9,2106.4,0.53187612]
[1773557524154,0.56002234,2106.9,2106.4,0.53187612]
[1773557527452,0.55565484,2107.4,2106.8,0.53187612]
[1773557528357,0.5617715,2107.4,2106.8,0.53187612]
[1773557541164,0.5617715,2107.4,2106.7,0.53187612]
[1773557574392,0.54543035,2107.5,2106.8,0.54893485]
[1773557574795,0.54543035,2107.5,2106.9,0.54893485]
[1773557574996,6.16606141,2107.7,2106.9,0.54893485]
[1773557575196,0.54989892,2107.7,2106.9,0.54893485]
[1773557583596,0.00446857,2107.7,2106.9,0.54893485]
[1773557583901,0.00446857,2107.7,2107.1,0.54893485]
[1773557584102,0.00446857,2107.7,2107.1,0.55355879]
[1773557597616,0.54989892,2107.7,2107.1,0.55355879]
[1773557598917,0.00446857,2107.7,2107.1,0.55355879]
[1773557599216,0.54543035,2107.9,2107.1,0.55355879]
[1773557599713,0.54543035,2107.9,2107.3,0.54893485]
[1773557600316,0.54897382,2107.9,2107.3,0.54893485]
[1773557601612,0.00354347,2107.9,2107.3,0.54893485]
[1773557602114,0.59291078,2107.9,2107.3,0.54893485]
[1773557605618,0.00354347,2107.9,2107.3,0.54893485]
[1773557606121,0.00354347,2107.9,2107.5,0.57407384]
[1773557611920,0.58936731,2108.3,2107.7,0.57407384]
[1773557612123,0.58936731,2108.3,2107.4,8.0428722]
[1773557612529,0.58936731,2108.1,2107.4,0.57407384]
[1773557613021,0.5952162,2108.1,2107.4,0.57407384]
[1773557633346,0.5952162,2108.1,2107.2,8.05061365]
[1773557633347,0.58426918,2107.9,2107.2,8.05061365]
[1773557633648,0.58426918,2107.9,2107.3,0.58181529]
[1773557637545,0.58426918,2107.9,2107.2,0.58181529]
[1773557637546,1.80045865,2107.8,2107.2,0.58181529]
[1773557637850,0.58426918,2107.5,2107.1,0.00462394]
[1773557645152,0.58426918,2107.3,2106.8,0.58181529]
[1773557645356,0.58426918,2107.3,2106.7,0.58181529]
[1773557646254,0.58426918,2107.3,2106.7,0.58664807]
[1773557647252,0.58426918,2107.5,2106.8,0.58181529]
[1773557648156,0.58426918,2107.5,2106.7,0.58664807]
[1773557648553,7.849,2107.8,2106.7,0.58664807]
[1773557648554,0.58426918,2107.3,2106.7,0.58664807]
[1773557650757,0.58426918,2107.3,2106.7,0.00483278]
[1773557652554,0.58426918,2107.1,2106.7,0.00483278]
[1773557653855,0.58426918,2107.1,2106.6,40.8]
[1773557654859,0.58426918,2107.1,2106.4,0.58181529]
[1773557655362,0.58426918,2107.1,2106.4,41.38181529]
[1773557655861,0.58426918,2107.1,2106.4,41.38660053]
[1773557659864,0.58426918,2107.1,2106.4,0.58660053]
[1773557660364,0.58426918,2107.1,2106.4,41.38660053]
[1773557663773,0.58426918,2107.1,2106.4,0.58660053]
[1773557680582,2.0397433,2107.5,2106.4,0.58660053]
[1773557680583,0.59191464,2107.3,2106.4,0.58660053]
[1773557680886,0.59191464,2107.3,2106.5,0.55543063]
[1773557696802,0.55534966,2107.4,2106.5,0.55543063]
[1773557697003,6.17327294,2107.6,2106.7,0.57247964]
[1773557697209,0.55534966,2107.6,2106.7,0.57247964]
[1773557703312,0.55534966,2107.6,2106.7,0.80825137]
[1773557703512,0.55534966,2107.6,2106.8,0.57247964]
[1773557721525,0.55534966,2107.6,2106.8,2.37372149]
[1773557721729,0.55534966,2107.6,2106.9,0.54255045]
[1773557737635,0.55534966,2107.6,2106.8,7.46879836]
[1773557737937,0.58227464,2107.3,2106.7,0.54255045]
[1773557763868,0.58227464,2107.3,2106.5,7.46879836]
[1773557764168,0.57902303,2107.2,2106.6,0.57451172]
[1773557767275,0.57902303,2107.2,2106.7,0.57451172]
[1773557775375,0.57902303,2107.2,2106.6,7.46879836]
[1773557775680,0.57902303,2107.1,2106.6,0.57451172]
[1773557790089,0.57902303,2107.1,2106.4,8.06205995]
[1773557796086,0.57902303,2107.1,2106.5,0.58847635]
[1773557798490,0.55568783,2107.3,2106.6,0.58847635]
[1773557800595,0.55568783,2107.3,2106.7,0.58847635]
[1773557801596,0.55568783,2107.5,2106.7,0.58847635]
[1773557802197,0.55568783,2107.5,2106.8,0.58847635]
[1773557804599,6.20415047,2107.7,2106.8,0.58847635]
[1773557805299,0.55568783,2107.7,2106.9,0.58847635]
[1773557805499,3.96959323,2108.0,2106.9,0.58847635]
[1773557805699,0.55568783,2107.8,2107.0,0.58847635]
[1773557815602,0.55568783,2107.8,2106.7,0.54780882]
[1773557818299,0.57613542,2107.7,2106.7,0.54780882]
[1773557827015,5.61988826,2107.9,2106.7,0.54780882]
[1773557827016,6.19602368,2107.9,2106.7,0.54780882]
[1773557827224,0.57613542,2107.9,2107.1,0.54780882]
[1773557836227,0.58198431,2108.1,2107.2,0.54780882]
[1773557838217,0.58198431,2108.1,2107.3,0.54780882]
[1773557843828,0.58198431,2108.1,2107.5,0.54396]
[1773557844230,0.58198431,2108.1,2107.7,0.54396]
[1773557848834,0.58198431,2108.1,2107.2,7.46879836]
[1773557849128,0.58198431,2108.1,2107.5,0.56637703]
[1773557855639,0.00584889,2108.1,2107.5,0.56637703]
[1773557856041,0.54076467,2108.3,2107.7,0.56637703]
[1773557857244,0.54605087,2108.3,2107.7,0.56637703]
[1773557859845,0.54605087,2108.3,2107.9,0.56637703]
[1773557860042,0.54605087,2108.3,2107.9,0.57184703]
[1773557860442,0.53659392,2108.3,2107.9,0.57184703]
[1773557861147,0.54076467,2108.4,2107.9,0.57184703]
[1773557861341,0.54076467,2108.4,2107.9,0.00547]
[1773557862146,0.54558973,2108.4,2107.9,0.00547]
[1773557862646,0.54076467,2108.3,2107.6,7.46879836]
[1773557862848,0.54076467,2108.3,2107.5,8.03517539]
[1773557863742,0.54076467,2108.3,2107.5,8.0403986]
[1773557864349,0.54076467,2108.3,2107.6,0.56637703]
[1773557868948,0.54076467,2108.1,2107.5,0.00522321]
[1773557870753,0.54076467,2107.9,2107.5,0.00522321]
[1773557871356,0.54076467,2107.9,2107.5,0.58283684]
[1773557875760,0.54076467,2107.9,2107.3,0.55332291]
[1773557876453,0.5494555,2107.7,2107.1,8.02212127]
[1773557876653,0.5494555,2107.7,2107.1,0.55332291]
[1773557876848,0.5494555,2107.7,2107.1,0.55884766]
[1773557879765,0.5494555,2107.7,2107.2,0.55332291]
[1773557889074,0.5494555,2107.7,2107.1,0.55884766]
[1773557889974,0.5494555,2107.7,2107.2,0.55332291]
[1773557900177,0.5494555,2107.9,2107.2,0.55332291]
[1773557901984,0.5494555,2107.9,2107.1,9.27441197]
[1773557902185,0.5494555,2107.9,2107.1,9.85149508]
[1773557902384,0.5494555,2107.9,2107.1,2.38269672]
[1773557902984,0.5494555,2107.9,2107.2,0.57708311]
[1773557904985,0.5494555,2107.9,2107.0,7.63519021]
[1773557905185,0.55059898,2107.8,2107.0,0.57708311]
[1773557905882,0.55059898,2107.8,2107.0,0.5805001]
[1773557930098,0.55059898,2107.8,2107.0,7.46814936]
[1773557930299,0.55059898,2107.8,2107.1,0.57708311]
[1773557931204,0.58054883,2108.0,2107.1,0.57708311]
[1773557931403,0.58054883,2108.0,2107.2,0.57592737]
[1773557932003,0.59271694,2107.9,2107.2,0.57592737]
[1773557941510,0.59271694,2107.9,2107.1,0.58212186]
[1773557950525,0.59271694,2107.8,2107.1,0.58212186]
[1773557964948,0.55495815,2107.7,2107.1,0.58212186]
[1773557984565,0.55495815,2107.8,2107.1,0.58212186]
[1773557987956,0.55495815,2108.3,2107.7,2.37486012]
[1773557988162,0.55495815,2108.3,2107.6,0.57387825]
[1773557988660,0.55495815,2108.3,2107.6,41.37387825]
[1773557988860,0.55495815,2108.3,2107.7,0.57387825]
[1773557990460,0.55495815,2108.3,2107.6,40.8]
[1773557990660,0.55495815,2108.3,2107.6,41.3712832]
[1773557990860,0.55495815,2108.3,2107.6,40.8]
[1773557991060,0.55495815,2108.3,2107.6,41.3712832]
[1773557991561,0.55495815,2108.3,2107.7,0.5712832]
[1773557991960,0.55495815,2108.3,2107.7,0.56811188]
[1773558001467,0.55495815,2108.3,2107.6,41.36811188]
[1773558001660,1.80098187,2108.2,2107.6,40.8]
[1773558001866,0.5341387,2108.1,2107.1,0.56811188]
[1773558002170,0.5341387,2108.1,2107.5,0.56811188]
[1773558002468,0.5341387,2108.1,2107.4,1.80098187]
[1773558002469,0.5341387,2108.1,2107.7,0.56811188]
[1773558002667,0.5341387,2108.3,2107.7,0.56811188]
[1773558015788,0.53896376,2108.4,2107.9,0.56811188]
[1773558016088,0.44976512,2108.4,2107.9,0.56811188]
[1773558016886,0.45482384,2108.4,2107.9,0.56811188]
[1773558017084,0.45482384,2108.4,2108.1,0.56811188]
[1773558018489,0.00505872,2108.4,2108.1,0.56811188]
[1773558018790,0.53919742,2108.4,2108.1,0.56811188]
[1773558025194,0.55656908,2108.5,2108.1,0.56811188]
[1773558026399,0.56194098,2108.5,2108.1,0.56811188]
[1773558032212,0.56194098,2108.5,2107.7,0.56242405]
[1773558041018,0.38362181,2108.5,2107.7,0.56242405]
[1773558053132,0.53596961,2108.4,2107.3,0.54024324]
[1773558068431,0.53596961,2108.4,2107.5,0.54024324]
[1773558074942,0.0053719,2108.5,2107.5,0.54024324]
[1773558075142,0.54134151,2108.5,2107.5,0.54024324]
[1773558079946,0.54134151,2108.5,2107.5,0.77556982]
[1773558080145,0.54134151,2108.5,2107.6,0.54024324]
[1773558081651,0.55069277,2108.8,2108.0,0.54226993]
[1773558082647,0.00502003,2108.8,2108.0,0.54226993]
[1773558082844,0.55069277,2109.1,2108.3,0.54226993]
[1773558083848,0.55680575,2109.1,2108.3,0.54226993]
[1773558086349,0.55680575,2109.1,2108.4,0.54226993]
[1773558087053,0.55680575,2109.1,2108.2,0.54226993]
[1773558087255,0.55069277,2108.9,2107.7,0.54226993]
[1773558087454,0.55069277,2108.7,2107.7,0.54226993]
[1773558087656,0.55069277,2108.4,2107.5,0.54226993]
[1773558088454,0.55069277,2108.4,2107.7,0.54226993]
[1773558088648,0.55069277,2108.3,2107.7,0.54226993]
[1773558093757,0.55069277,2108.7,2107.9,0.54226993]
[1773558104358,2.03751648,2108.8,2107.9,0.54226993]
[1773558104559,0.55680575,2109.1,2108.5,0.54226993]
[1773558104758,0.55680575,2109.1,2108.5,0.54811593]
[1773558105763,0.00611298,2109.1,2108.7,0.54226993]
[1773558106258,0.55069277,2109.7,2108.7,0.54226993]
[1773558107162,0.55524059,2109.7,2108.7,0.54226993]
[1773558108063,1.80045648,2109.6,2108.7,0.54226993]
[1773558108264,0.55069277,2109.5,2108.7,0.54226993]
[1773558109668,0.55069277,2109.8,2109.4,0.54226993]
[1773558110565,0.55407177,2109.8,2109.4,0.54226993]
[1773558112167,0.003379,2109.8,2109.4,0.54226993]
[1773558113266,0.54154593,2109.8,2109.4,0.54226993]
[1773558114566,0.53816693,2109.7,2109.0,0.53914405]
[1773558123663,0.54154593,2109.8,2109.2,0.53914405]
[1773558123966,0.54154593,2109.8,2109.0,0.53914405]
[1773558130674,2.34200241,2109.8,2109.0,0.53914405]
[1773558130876,0.53816693,2109.7,2109.0,0.53914405]
[1773558132179,0.53816693,2109.6,2109.0,0.53914405]
[1773558132777,0.53816693,2109.5,2108.7,0.53914405]
[1773558134381,0.53816693,2109.4,2108.7,0.53914405]
[1773558138482,0.53816693,2109.1,2108.7,0.53914405]
[1773558138678,0.53816693,2109.1,2108.5,0.54499005]
[1773558139282,0.53816693,2109.1,2108.5,41.34499005]
[1773558139482,0.53816693,2109.0,2108.5,0.54499005]
[1773558147092,0.53816693,2109.0,2108.3,41.40414109]
[1773558147593,0.53816693,2109.0,2108.4,0.60414109]
[1773558148092,0.53816693,2109.0,2108.4,0.60757443]
[1773558150693,0.60654652,2109.2,2108.4,0.60757443]
[1773558150990,7.38,2109.3,2108.4,0.60757443]
[1773558151697,0.60992552,2109.8,2108.8,0.60414109]
[1773558151896,0.003379,2109.8,2109.1,0.60414109]
[1773558152896,0.76123296,2109.9,2109.1,0.60414109]
[1773558153094,0.60654652,2110.1,2109.3,1.79912598]
[1773558153295,3.94766013,2110.5,2109.3,1.79912598]
[1773558153296,0.60654652,2110.4,2109.4,0.60414109]
[1773558153696,0.60654652,2110.4,2109.6,0.60414109]
[1773558153890,0.61239283,2110.4,2109.6,0.60414109]
[1773558154698,0.00584631,2110.4,2109.6,2.40326707]
[1773558154894,0.00584631,2110.4,2109.7,0.60414109]
[1773558159296,0.00584631,2110.4,2109.9,0.60414109]
[1773558159499,0.60654652,2110.6,2109.9,0.60835618]
[1773558159902,0.60654652,2110.8,2109.9,0.60835618]
[1773558160100,0.60654652,2110.9,2109.9,0.60835618]
[1773558160297,0.60654652,2110.9,2110.0,0.60414109]
[1773558160600,0.61202595,2110.9,2110.0,0.60414109]
[1773558164203,2.41115193,2110.9,2109.9,0.00421509]
[1773558164501,0.60654652,2110.8,2109.9,0.00421509]
[1773558165598,0.60654652,2110.7,2109.9,0.00421509]
[1773558165898,0.60654652,2110.5,2109.9,0.00421509]
[1773558169899,0.60654652,2110.5,2109.1,0.60414109]
[1773558170306,0.60654652,2110.5,2109.3,0.60414109]
[1773558170504,7.365,2110.6,2109.3,0.60414109]
[1773558170505,0.60654652,2110.3,2109.3,0.60414109]
[1773558170805,0.60654652,2110.3,2109.3,0.60756902]
[1773558175406,0.57535687,2110.1,2109.3,0.60756902]
[1773558181205,0.57535687,2110.1,2109.3,0.00342793]
[1773558181411,0.57535687,2110.1,2109.1,0.5681165]
[1773558181613,0.57535687,2110.0,2109.1,0.5681165]
[1773558181806,0.57535687,2109.8,2109.1,0.5681165]
[1773558182409,0.57535687,2109.8,2109.1,0.00468254]
[1773558183106,0.57535687,2109.7,2109.1,0.00468254]
[1773558183511,0.57535687,2109.7,2108.8,0.5681165]
[1773558184512,0.57535687,2109.7,2108.8,0.5735971]
[1773558185212,0.57535687,2109.7,2108.8,0.0054806]
[1773558187909,6.21952202,2109.7,2108.8,0.0054806]
[1773558188104,0.57535687,2109.6,2108.8,0.0054806]
[1773558188305,0.57535687,2109.6,2108.8,0.5735971]
[1773558190411,0.57535687,2109.4,2108.8,0.5735971]
[1773558190613,0.57937895,2109.4,2108.8,0.5735971]
[1773558195124,0.57937895,2109.4,2108.4,0.5681165]
[1773558195424,0.57535687,2109.3,2108.4,0.5681165]
[1773558195623,0.57535687,2109.3,2108.5,0.5681165]
[1773558196115,0.57535687,2109.3,2108.5,0.57150538]
[1773558197320,0.57535687,2109.3,2108.5,0.00338888]
[1773558199823,0.57535687,2109.3,2108.5,0.57150538]
[1773558200028,0.57535687,2109.1,2108.5,0.57150538]
[1773558207432,7.98335687,2109.1,2108.5,0.57150538]
[1773558208141,0.62178147,2109.0,2108.5,0.57150538]
[1773558214440,8.04178147,2109.0,2108.5,0.57150538]
[1773558216640,0.62178147,2108.9,2108.5,0.57150538]
[1773558217036,0.62178147,2109.1,2108.5,0.57150538]
[1773558217343,7.427,2109.0,2108.5,0.57150538]
[1773558217842,8.04978147,2109.1,2108.5,0.57150538]
[1773558218641,0.62178147,2109.3,2108.7,0.58747297]
[1773558221446,8.06280355,2109.4,2108.7,0.58747297]
[1773558221744,8.06480355,2109.4,2108.7,0.58747297]
[1773558226350,0.62178147,2109.3,2108.7,0.58747297]
[1773558232751,7.46702208,2109.4,2108.7,0.58747297]
[1773558232752,0.00402208,2109.4,2108.7,0.58747297]
[1773558233552,0.55661041,2109.4,2108.7,0.58747297]
[1773558241051,0.55661041,2109.4,2108.7,0.82745436]
[1773558241355,0.55661041,2109.4,2108.8,0.53826685]
[1773558246755,0.00402208,2109.4,2108.8,2.33716667]
[1773558246952,0.55258833,2109.9,2109.3,0.53826685]
[1773558247155,5.65825773,2110.0,2109.3,0.53826685]
[1773558247456,0.55258833,2110.1,2109.5,0.53826685]
[1773558247858,0.55860257,2110.1,2109.5,0.53826685]
[1773558249961,0.55258833,2110.0,2109.4,40.8]
[1773558250161,0.55258833,2109.8,2109.4,40.8]
[1773558251164,0.55258833,2109.8,2109.2,0.53826685]
[1773558251466,0.55258833,2109.6,2109.0,0.53826685]
[1773558251659,0.55258833,2109.6,2109.1,0.53826685]
[1773558258467,0.55258833,2109.8,2109.1,0.53826685]
[1773558263465,0.54609548,2110.0,2109.3,0.53760538]
[1773558270774,0.54609548,2110.0,2109.5,0.53760538]
[1773558274086,0.00601424,2110.1,2109.5,0.53760538]
[1773558274287,0.55210972,2110.1,2109.5,0.53760538]
[1773558275487,0.55210972,2110.1,2109.3,0.53760538]
[1773558283685,0.00601424,2110.1,2109.3,0.53760538]
[1773558284194,0.55210972,2110.1,2109.3,0.53760538]
[1773558285890,0.00601424,2110.1,2109.4,0.53760538]
[1773558286495,0.00601424,2110.1,2109.4,27.34060538]
[1773558286795,0.00601424,2110.1,2109.5,0.53760538]
[1773558289197,0.54609548,2110.3,2109.5,0.53760538]
[1773558290392,0.55201837,2110.3,2109.5,0.53760538]
[1773558292296,0.00592289,2110.3,2109.5,0.53760538]
[1773558292896,0.00592289,2110.3,2109.7,0.5572293]
[1773558293088,0.56203075,2110.6,2109.8,0.5572293]
[1773558294102,0.56764913,2110.6,2109.8,0.5572293]
[1773558294996,0.00561838,2110.6,2109.8,2.35416045]
[1773558295198,0.00561838,2110.6,2109.9,0.5572293]
[1773558296299,0.56203075,2110.5,2110.0,40.8]
[1773558296500,0.56203075,2110.5,2110.0,40.80539947]
[1773558296895,0.56203075,2110.5,2110.1,0.5572293]
[1773558297104,0.00561838,2110.6,2110.1,0.5572293]
[1773558297600,0.00093573,2110.6,2110.1,0.5572293]
[1773558300203,0.56296648,2110.6,2110.1,0.5572293]
[1773558303097,0.56296648,2110.6,2110.0,41.36262877]
[1773558304108,0.56296648,2110.6,2110.1,0.5572293]
[1773558305308,0.56203075,2110.7,2110.1,0.5572293]
[1773558306307,0.56581724,2110.7,2110.1,0.5572293]
[1773558313622,0.56581724,2110.7,2110.0,40.80539947]
[1773558313823,0.56581724,2110.7,2110.0,41.36262877]
[1773558314327,0.56581724,2110.7,2110.0,40.80539947]
[1773558315023,0.56581724,2110.7,2110.1,0.5572293]
[1773558315425,0.56581724,2110.7,2110.0,40.80539947]
[1773558316125,0.56581724,2110.7,2110.0,41.36262877]
[1773558317724,0.56581724,2110.7,2110.0,40.80539947]
[1773558318426,0.56581724,2110.7,2110.0,41.36262877]
[1773558319022,0.56203075,2110.6,2110.0,41.36262877]
[1773558320025,0.56203075,2110.6,2110.1,0.5572293]
[1773558322026,0.56203075,2110.6,2110.0,40.80539947]
[1773558323327,0.56203075,2110.6,2110.0,41.38938785]
[1773558323530,0.56203075,2110.6,2110.0,40.80539947]
[1773558326031,0.56203075,2110.6,2110.0,0.00539947]
[1773558326533,0.56203075,2110.6,2110.0,40.80539947]
[1773558328029,0.56203075,2110.6,2110.0,41.38938785]
[1773558328334,0.58668722,2110.5,2110.1,0.58398838]
[1773558328830,0.59047371,2110.7,2110.1,0.58398838]
[1773558331934,0.00378649,2110.7,2110.1,0.58398838]
[1773558333531,0.58668722,2110.9,2110.1,2.37960809]
[1773558333736,6.25264408,2110.9,2110.2,0.58398838]
[1773558334437,5.66595686,2110.8,2110.2,0.58398838]
[1773558334737,0.59111516,2110.9,2110.2,0.58398838]
[1773558335037,6.25696675,2110.9,2110.2,0.58398838]
[1773558335932,0.59111516,2110.9,2110.2,0.58398838]
[1773558344046,0.59111516,2110.9,2110.3,0.58398838]
[1773558344844,0.59111516,2110.9,2110.2,0.23673113]
[1773558344845,0.59111516,2110.9,2110.4,0.58398838]
[1773558348551,0.59111516,2110.9,2110.2,0.82071951]
[1773558348850,0.59111516,2110.9,2110.3,0.58398838]
[1773558350949,0.00442794,2110.9,2110.3,2.37960809]
[1773558351152,0.00442794,2110.9,2110.4,0.57754936]
[1773558352451,0.56455325,2110.9,2110.4,0.57754936]
[1773558355155,0.56455325,2110.9,2110.3,0.58944871]
[1773558355354,0.56455325,2110.9,2110.1,0.58944871]
[1773558357651,0.56455325,2110.9,2110.2,0.58944871]
[1773558357847,0.00442794,2110.9,2110.2,0.58944871]
[1773558358052,0.56012531,2111.3,2110.8,0.58944871]
[1773558359150,0.56012531,2111.2,2110.4,0.58944871]
[1773558360361,1.79903628,2111.3,2110.4,0.58944871]
[1773558360362,0.56012531,2111.0,2110.4,0.58944871]
[1773558360858,7.552,2111.2,2110.4,0.58944871]
[1773558361057,0.56012531,2111.1,2110.4,0.58944871]
[1773558363564,1.79561971,2111.0,2110.3,7.39867285]
[1773558363759,0.56012531,2110.7,2110.0,41.39484818]
[1773558364156,0.56012531,2110.7,2110.1,0.58944871]
[1773558384775,0.56578377,2110.6,2110.0,40.80539947]
[1773558384970,0.56578377,2110.6,2110.0,41.36475936]
[1773558385874,0.56578377,2110.4,2109.7,0.55935989]
[1773558386269,0.56578377,2110.4,2109.8,40.8]
[1773558386570,0.56578377,2110.4,2109.8,41.35935989]
[1773558386873,0.56578377,2110.4,2109.8,41.36413908]
[1773558391278,0.56578377,2110.4,2109.9,0.55935989]
[1773558392176,0.56578377,2110.3,2109.8,0.00477919]
[1773558392672,0.56578377,2110.3,2109.4,0.55935989]
[1773558393278,0.56578377,2110.3,2109.6,0.55935989]
[1773558393671,0.56578377,2110.3,2109.6,0.56384243]
[1773558397174,0.56578377,2110.3,2109.6,0.00448254]
[1773558397378,0.56578377,2110.2,2109.5,0.55935989]
[1773558397579,0.56578377,2110.1,2109.2,0.55935989]
[1773558397778,0.56578377,2110.0,2109.2,41.35935989]
[1773558398274,0.56578377,2110.0,2109.2,41.36282135]
[1773558398474,7.594,2109.9,2109.2,41.36282135]
[1773558398671,0.56578377,2109.8,2109.2,41.36282135]
[1773558398974,0.56982856,2109.8,2109.2,41.36282135]
[1773558401482,0.56982856,2109.8,2109.2,0.56282135]
[1773558402278,0.56982856,2109.8,2109.2,0.00346146]
[1773558403378,0.56982856,2109.8,2108.9,0.55935989]
[1773558403778,0.56578377,2109.7,2108.9,0.55935989]
[1773558404583,0.56578377,2109.7,2108.9,0.5634133]
[1773558418095,0.55677541,2109.4,2108.5,0.55617179]
[1773558418695,0.55677541,2109.4,2108.6,0.55617179]
[1773558419298,0.55677541,2109.2,2108.6,0.56111247]
[1773558420599,0.23697,2109.6,2108.6,0.56111247]
[1773558420600,0.55677541,2109.5,2108.6,0.56111247]
[1773558426201,6.21277106,2109.5,2108.6,0.56111247]
[1773558426400,0.55677541,2109.5,2108.6,0.56111247]
[1773558427201,0.55677541,2109.5,2108.7,0.55617179]
[1773558428898,5.66967837,2109.8,2108.7,0.55617179]
[1773558429098,0.55677541,2110.0,2109.0,0.55617179]
[1773558429305,0.55677541,2110.0,2109.1,0.55617179]
[1773558430007,0.56109778,2110.0,2109.1,0.55617179]
[1773558434513,0.56109778,2110.0,2109.2,0.55617179]
[1773558449725,0.56109778,2110.0,2109.0,0.56818174]
[1773558455428,0.56808476,2109.9,2109.0,0.56818174]
[1773558455630,0.56808476,2109.8,2109.0,0.56818174]
[1773558456129,1.79776545,2109.9,2109.0,0.56818174]
[1773558456130,0.56808476,2109.7,2109.0,0.56818174]
[1773558458132,0.56808476,2109.7,2108.9,1.79776545]
[1773558458333,0.56808476,2109.6,2108.8,0.56818174]
[1773558458528,0.56808476,2109.5,2108.8,0.56818174]
[1773558459133,0.56808476,2109.5,2108.7,0.56818174]
[1773558463734,0.56808476,2109.9,2109.4,2.36594719]
[1773558463935,0.56808476,2109.9,2109.4,0.56818174]
[1773558466332,0.00432237,2110.0,2109.4,0.56818174]
[1773558466536,0.00432237,2110.0,2109.5,0.56818174]
[1773558466938,0.00432237,2110.0,2109.2,1.79776545]
[1773558466939,0.57240713,2110.0,2109.2,1.79776545]
[1773558467234,0.57240713,2110.0,2109.3,0.56818174]
[1773558471448,0.55146574,2109.8,2109.1,0.54131959]
[1773558473140,0.55146574,2109.8,2108.8,7.42298809]
[1773558473341,0.55146574,2109.8,2108.8,0.55015403]
[1773558473342,0.54684689,2109.4,2108.8,0.55015403]